Cogmind - Beta 9.1 @@@ ROGUE MODE // 2019.11.03 @ 23:37:01 Player: arsonius Result: Destroyed by H-66 Slayer with Gauss Rifle Performance ------------- Evolutions (6) 3000 Regions Visited (23) 4600 Robots Destroyed (61) 305 Value Destroyed (3130) 3130 Prototype IDs (56) 1120 Alien Tech Used (0) 0 Bonus (5577) 5577 TOTAL SCORE: 17732 Bonus ------- Follower Combat Kills 1577 Entered Garrisons 1200 Used RIF Installer 2500 Aligned with FarCom 300 Cogmind --------- Core Integrity 0/1150 Matter 258/300 Energy 91/100 System Corruption 7% Temperature Cool (0) Location -3/Proximity Caves Parts ------- Power (1) Propulsion (4) Utility (12) Advanced Terrain Scan Processor Targeting Computer Advanced System Shield Relay Coupler [ARC] (12) Component Analysis Suite Trap Reconfigurator Weapon (2) Inventory (4) High-capacity Matter Pod (200) Advanced Reclamation Unit Makeshift Laser Dirty Datajack Peak State ------------ Power Micro Fission Core Propulsion Antigrav System Antigrav System Antigrav System Linear Gravjet Utility Small Storage Unit Medium Storage Unit Large Storage Unit Improved Energy Well Reaction Control System Point Defense System Hacking Suite Hacking Suite Relay Coupler [NC] Relay Coupler [ARC] Relay Coupler [Sentry] Improved System Restoration Module Weapon Improved Datajack Improved Remote Datajack Inventory Micro Nuclear Core Light Antimatter Reactor Gyrokinetic Inverter High-capacity Matter Pod Improved Cloaking Device Focal Shield Improved Remote Shield Improved Remote Shield Improved Remote Shield Component Analysis Suite Improved System Backup Module Trap Reconfigurator [Rating: 91] Favorites ----------- Power Light Ion Engine Engine Light Ion Engine Power Core Micro Nuclear Core Reactor Light Antimatter Reactor Propulsion Improved Flight Unit Treads Improved Treads Leg Aluminum Leg Hover Unit Antigrav System Flight Unit Improved Flight Unit Utility Hacking Suite Device Advanced Weight Redist. System Storage Small Storage Unit Processor Signal Interpreter Hackware Hacking Suite Protection Experimental Propulsion Shielding Weapon Heavy Assault Rifle Energy Gun Improved EM Shotgun Energy Cannon Improved EM Pulse Cannon Ballistic Gun Heavy Assault Rifle Special Weapon Remote Datajack Slashing Weapon Mining Claw Special Melee Weapon Improved Datajack Build | -11 -10 -10 -9 -9 -9 -8 -8 -8 -8 -8 -7 -7 -7 -7 -6 -6 -5 -5 -4 -4 -4 -4 -3 ------- Run | Scr Mat Min Mat Min Exi Min Mat Gar Mat Gar Fac Gar Fac Gar Fac Gar Fac Gar Fac Upp Upp War Pro Slots Evolved 12 | . . . 2 . . . 2 . . . 2 . . . 2 . 2 . 2 . . . . Power . | . . . . . . . . . . . . . . . . . . . . . . . . Propulsion 2 | . . . . . . . . . . . . . . . . . . . 2 . . . . Utility 10 | . . . 2 . . . 2 . . . 2 . . . 2 . 2 . . . . . . Weapon . | . . . . . . . . . . . . . . . . . . . . . . . . Parts Attached 280 | 6 4 2 36 1 1 . 2 8 13 10 27 7 10 30 14 26 29 16 15 11 7 . 5 Power 20 | 1 . . 5 . . . . 1 . 1 2 . 1 2 2 2 1 . 2 . . . . Engine 10 | 1 . . 5 . . . . 1 . 1 . . 1 . . 1 . . . . . . . Core 9 | . . . . . . . . . . . 2 . . 2 2 1 1 . 1 . . . . Reactor 1 | . . . . . . . . . . . . . . . . . . . 1 . . . . Propulsion 47 | 2 2 . 6 . . . . 2 . 1 6 1 3 1 2 4 6 4 4 1 1 . 1 Treads 6 | . 2 . 3 . . . . . . . . . . . . . . . . 1 . . . Leg 3 | 2 . . . . . . . . . . . . . . . . . . . . . . 1 Wheel . | . . . . . . . . . . . . . . . . . . . . . . . . Hover 13 | . . . . . . . . . . . . . . . . . 5 4 4 . . . . Flight 25 | . . . 3 . . . . 2 . 1 6 1 3 1 2 4 1 . . . 1 . . Utility 148 | 1 1 . 16 . . . 2 3 11 4 8 6 4 23 9 11 17 10 8 9 2 . 3 Device 59 | . . . 4 . . . 1 . 8 2 3 4 2 10 2 . 6 5 5 6 1 . . Storage 23 | 1 . . 5 . . . . . 1 1 . 1 1 2 . 1 5 1 2 1 . . 1 Processor 6 | . . . 3 . . . . . . . . . . . . . . . . 1 1 . 1 Hackware 45 | . 1 . . . . . 1 3 2 1 5 1 1 11 4 8 3 2 1 1 . . . Protection 15 | . . . 4 . . . . . . . . . . . 3 2 3 2 . . . . 1 Artifact . | . . . . . . . . . . . . . . . . . . . . . . . . Weapon 65 | 2 1 2 9 1 1 . . 2 2 4 11 . 2 4 1 9 5 2 1 1 4 . 1 Energy Gun 21 | 2 . . 7 . . . . . 1 . 7 . . . . 1 . . . . 3 . . Energy Cannon 3 | . . . . . . . . . . . 3 . . . . . . . . . . . . Ballistic Gun 10 | . 1 1 1 . . . . 1 . 1 . . . 1 . 4 . . . . . . . Ballistic Cannon . | . . . . . . . . . . . . . . . . . . . . . . . . Launcher . | . . . . . . . . . . . . . . . . . . . . . . . . Special Weapon 20 | . . 1 . 1 . . . . . . 1 . 1 3 1 3 4 2 1 1 . . 1 Impact Weapon . | . . . . . . . . . . . . . . . . . . . . . . . . Slashing Weapon 2 | . . . 1 . . . . . . . . . . . . 1 . . . . . . . Piercing Weapon . | . . . . . . . . . . . . . . . . . . . . . . . . Special Melee Weapon 9 | . . . . . 1 . . 1 1 3 . . 1 . . . 1 . . . 1 . . Unidentified Prototypes 8 | . . . 2 . . . . 1 1 . 1 . . . 1 . 1 . . . . . 1 Parts Lost 71 | . . . 6 . . . 1 2 1 10 2 1 1 3 . 2 . 10 14 12 2 . 4 Power 7 | . . . 1 . . . . 1 1 1 . . . . . . . . 2 1 . . . Propulsion 16 | . . . 1 . . . . . . 1 . . 1 1 . . . 4 3 3 . . 2 Utility 35 | . . . 2 . . . . 1 . 5 1 1 . 1 . 1 . 5 7 8 2 . 1 Weapon 13 | . . . 2 . . . 1 . . 3 1 . . 1 . 1 . 1 2 . . . 1 Highest Loss Streak 8 | . . . 1 . . . 1 2 1 7 1 1 1 2 . 1 . 6 8 8 2 . 4 Average Slot Usage (%) 86 | . 92 100 97 100 100 100 90 88 99 75 63 91 92 97 99 95 99 94 86 54 29 42 46 Engine 4 | . 14 14 9 11 11 11 9 9 8 1 . . 3 . . . . . . . . . . Core 2 | . . . . . . . . . . . . 7 3 6 6 5 5 5 4 . . . . Treads 4 | . 8 28 20 . . . . . . . . . . . . . . . . . . . . Hover 1 | . . . . . . . . . . . . . . . . . 6 11 18 8 . . . Flight 9 | . . . 1 22 22 22 18 18 18 18 14 15 15 14 13 12 4 . . . . 5 4 Device 7 | . . . 4 11 11 11 9 18 10 4 4 12 7 6 6 6 7 9 10 17 12 10 10 Storage 13 | . 14 14 18 22 22 22 18 18 17 10 13 8 14 14 13 6 13 13 14 9 . . . Processor 1 | . . . 5 . . . . . . . . . . . . . . . . . 3 5 6 Hackware 25 | . 7 14 11 11 11 11 18 15 25 31 29 38 38 36 40 45 46 41 25 12 10 10 10 Energy Gun 4 | . 24 . 9 11 11 11 8 . . 4 . 7 7 3 . 2 . . . . 1 10 9 Ballistic Gun 3 | . 3 22 7 . . . . . 9 1 . . . 3 5 1 . . . . . . . Special Weapon 2 | . . 5 . 11 4 . . . . . . . . 3 6 6 6 3 3 . . . . Special Melee Weapon 1 | . . . . . 6 11 9 9 7 2 . . . 2 . . 2 5 3 . . . . Naked Turns . | . . . . . . . . . . . . . . . . . . . . . . . . Heaviest Build 55 | 13 14 15 51 17 16 15 16 16 17 21 21 22 24 24 27 25 41 41 51 55 9 9 17 Greatest Support 64 | 20 46 46 46 18 18 18 18 18 18 18 19 19 23 23 25 25 41 41 64 32 10 10 25 Greatest Overweight (x) 13 | 1 . . 1 1 1 1 1 1 1 4 6 1 1 3 2 1 13 1 1 3 2 . 3 Average Overweight (x) . | . . . . . . . . . . . . . . . . . . . . 1 . . 1 Largest Inventory Capacity 16 | 6 6 6 16 8 8 8 8 8 10 10 10 10 10 10 10 10 16 16 16 10 4 4 8 Average Capacity 9 | 4 6 6 8 8 8 8 8 8 8 8 9 8 9 9 10 8 12 14 14 9 4 4 4 Most Carried 16 | 4 6 6 16 8 8 8 8 8 8 8 10 10 10 10 10 10 16 16 16 9 4 4 7 Average Carried 8 | 2 5 5 8 7 7 8 7 7 7 7 9 8 9 9 9 8 12 14 11 6 3 4 4 Final Capacity 16 | 6 6 6 8 8 8 8 8 8 8 10 8 8 10 10 10 10 16 10 10 4 4 4 4 Final Carried 16 | 4 6 6 8 8 8 8 8 8 8 8 8 8 10 10 10 10 16 10 9 4 4 4 4 Class Distribution -------------------- 31% | Hacker-Mutant 29% | Mutant 18% | Bothacker-Mutant 6% | Derelict-Mutant 5% | Scavenger-Mutant 3% | Hacker-Sprinter 3% | Scavenger-Sprinter Dominant Class ---------------- Mutant | -10/Materials Mutant | -10/Mines Mutant | -9/Materials Mutant | -9/Mines Mutant | -9/Exiles Mutant | -8/Mines Hacker-Mutant | -8/Materials Mutant | -8/Garrison Scavenger-Sprinter | -8/Materials Hacker-Mutant | -8/Garrison Hacker-Mutant | -7/Factory Hacker-Mutant | -7/Garrison Bothacker-Mutant | -7/Factory Bothacker-Mutant | -7/Garrison Bothacker-Mutant | -6/Factory Bothacker-Mutant | -6/Garrison Hacker-Mutant | -5/Factory Bothacker-Mutant | -5/Garrison Hacker-Mutant | -4/Factory Mutant | -4/Upper Caves Mutant | -4/Upper Caves Derelict-Mutant | -4/Warlord Derelict-Mutant | -3/Proximity Caves Resources | -11 -10 -10 -9 -9 -9 -8 -8 -8 -8 -8 -7 -7 -7 -7 -6 -6 -5 -5 -4 -4 -4 -4 -3 ----------- Run | Scr Mat Min Mat Min Exi Min Mat Gar Mat Gar Fac Gar Fac Gar Fac Gar Fac Gar Fac Upp Upp War Pro Matter Collected 3622 | 239 31 122 528 20 10 . . 98 80 192 230 . 57 652 190 332 348 149 . 158 28 . 158 Remotely . | . . . . . . . . . . . . . . . . . . . . . . . . Salvage Created 2607 | . 20 191 2031 . . . . . . 47 77 . . 28 . . . . . . . . 213 Parts 148 | . 3 15 120 . . . . . . 3 1 . . 2 . . . . . . . . 4 Haulers Intercepted 5 | . . . 5 . . . . . . . . . . . . . . . . . . . . Recyclers Shooed 2 | . . . 2 . . . . . . . . . . . . . . . . . . . . Parts Field Recycled . | . . . . . . . . . . . . . . . . . . . . . . . . Retrieved Matter . | . . . . . . . . . . . . . . . . . . . . . . . . Parts Self-Destructed 5 | . . . . . . . . . . . . . . . . . . . . 1 . . 4 Prevented . | . . . . . . . . . . . . . . . . . . . . . . . . Kills | -11 -10 -10 -9 -9 -9 -8 -8 -8 -8 -8 -7 -7 -7 -7 -6 -6 -5 -5 -4 -4 -4 -4 -3 ------- Run | Scr Mat Min Mat Min Exi Min Mat Gar Mat Gar Fac Gar Fac Gar Fac Gar Fac Gar Fac Upp Upp War Pro Combat Hostiles Destroyed 43 | . . 8 31 . . . . . . 1 2 . . 1 . . . . . . . . . Melee 2 | . . . 2 . . . . . . . . . . . . . . . . . . . . Guns 36 | . . 8 25 . . . . . . 1 1 . . 1 . . . . . . . . . AOE 3 | . . . 3 . . . . . . . . . . . . . . . . . . . . Classes Destroyed 9 | . 1 2 5 . . . . . . . 1 . . . . . . . . . . . . Worker 2 | . . . 2 . . . . . . . . . . . . . . . . . . . . Hauler 5 | . . . 5 . . . . . . . . . . . . . . . . . . . . Recycler 4 | . . . 4 . . . . . . . . . . . . . . . . . . . . Operator 3 | . 1 . 2 . . . . . . . . . . . . . . . . . . . . Watcher 4 | . . . 4 . . . . . . . . . . . . . . . . . . . . Swarmer 12 | . . 6 5 . . . . . . . . . . 1 . . . . . . . . . Grunt 22 | . . 2 19 . . . . . . 1 . . . . . . . . . . . . . Sentry 7 | . . . 7 . . . . . . . . . . . . . . . . . . . . Programmer 2 | . . . . . . . . . . . 2 . . . . . . . . . . . . Best Kill Streak 4 | . 1 3 4 . . . . . . 1 1 . . 1 . . . . . . . . . Combat Bots Only 3 | . . 3 3 . . . . . . 1 1 . . 1 . . . . . . . . . Max Kills in Single Turn 2 | . 1 1 2 . . . . . . 1 1 . . 1 . . . . . . . . . Gunslinging . | . . . . . . . . . . . . . . . . . . . . . . . . Exploded 1 | . . . 1 . . . . . . . . . . . . . . . . . . . . Melee 1 | . . . 1 . . . . . . . . . . . . . . . . . . . . Uniques/NPCs Destroyed . | . . . . . . . . . . . . . . . . . . . . . . . . Combat | -11 -10 -10 -9 -9 -9 -8 -8 -8 -8 -8 -7 -7 -7 -7 -6 -6 -5 -5 -4 -4 -4 -4 -3 -------- Run | Scr Mat Min Mat Min Exi Min Mat Gar Mat Gar Fac Gar Fac Gar Fac Gar Fac Gar Fac Upp Upp War Pro Damage Taken 9368 | . 103 236 1569 36 . 16 192 111 87 833 586 30 174 322 12 220 237 1440 788 1648 118 116 494 Core 2683 | . 12 75 213 11 . 7 77 65 . 283 211 . 53 43 12 96 8 349 208 709 66 60 125 Absorbed by Shields 197 | . . . . . . . . 26 . 27 . . . . . . . 71 . 73 . . . Core Remaining (%) 62 | 100 . 65 . . . 42 . . . 22 . . . 56 . 87 . 64 . . . . . Volleys Fired 389 | . 1 27 177 1 . . . . . 38 25 2 6 40 10 28 10 7 3 1 . . 13 Largest 2 | . 1 1 2 1 . . . . . 1 1 1 1 1 1 1 1 1 1 1 . . 1 Hottest 100 | . 40 100 90 80 . . . . . 56 69 55 30 55 30 69 40 40 40 30 . . 50 Shots Fired 391 | . 1 27 178 1 . . . . . 38 25 2 6 40 10 28 10 7 3 1 . . 14 Gun 305 | . 1 25 178 . . . . . . 38 21 2 . 11 . 16 . . . . . . 13 Cannon 1 | . . . . . . . . . . . 1 . . . . . . . . . . . . Launcher . | . . . . . . . . . . . . . . . . . . . . . . . . Special 85 | . . 2 . 1 . . . . . . 3 . 6 29 10 12 10 7 3 1 . . 1 Kinetic 130 | . . 25 67 . . . . . . 29 . . . 6 . 3 . . . . . . . Thermal 83 | . . 2 23 1 . . . . . 9 21 . . . . 13 . 1 . . . . 13 Explosive . | . . . . . . . . . . . . . . . . . . . . . . . . Electromagnetic 97 | . 1 . 88 . . . . . . . 1 2 . 5 . . . . . . . . . Robot Hit Streak 19 | . 1 5 13 . . . . . . 8 19 . 2 17 6 8 6 10 2 3 . . 7 Robot Miss Streak 4 | . . 1 4 . . . . . . 2 2 . 2 1 1 4 2 1 1 . . . 1 Penetration Max . | . . . . . . . . . . . . . . . . . . . . . . . . Secondary Targets . | . . . . . . . . . . . . . . . . . . . . . . . . Shots Hit Robots 311 | . 1 20 139 . 7 1 . 4 1 14 20 . 3 37 8 15 18 10 2 1 . . 10 Core Hits 93 | . 1 10 68 . . . . . . 3 3 . . 2 . 1 . . . . . . 5 Critical Hits 1 | . . 1 . . . . . . . . . . . . . . . . . . . . . Critical Kills . | . . . . . . . . . . . . . . . . . . . . . . . . Critical Parts Destroyed 1 | . . 1 . . . . . . . . . . . . . . . . . . . . . Melee Attacks 59 | . . . 14 . 7 1 . 5 1 3 . . . 9 . . 11 8 . . . . . Impact . | . . . . . . . . . . . . . . . . . . . . . . . . Slashing 14 | . . . 14 . . . . . . . . . . . . . . . . . . . . Piercing . | . . . . . . . . . . . . . . . . . . . . . . . . Sneak Attacks 23 | . . . 2 . 6 1 . 1 1 . . . . . . . 11 1 . . . . . Combat Hostiles 3 | . . . . . . . . 1 . . . . . . . . 1 1 . . . . . Follow-up Attacks . | . . . . . . . . . . . . . . . . . . . . . . . . Damage Inflicted 4052 | . 18 320 2803 . . . . . . 134 451 . . 34 . 67 . . 38 . . . 187 Guns 3368 | . 18 318 2164 . . . . . . 134 446 . . 34 . 67 . . . . . . 187 Cannons 5 | . . . . . . . . . . . 5 . . . . . . . . . . . . Explosions 353 | . . . 353 . . . . . . . . . . . . . . . . . . . . Melee 277 | . . . 277 . . . . . . . . . . . . . . . . . . . . Ramming 49 | . . 2 9 . . . . . . . . . . . . . . . 38 . . . . Kinetic 1105 | . . 318 706 . . . . . . 81 . . . . . . . . . . . . . Thermal 1354 | . . . 601 . . . . . . 53 446 . . . . 67 . . . . . . 187 Explosive . | . . . . . . . . . . . . . . . . . . . . . . . . Electromagnetic 1267 | . 18 . 1210 . . . . . . . 5 . . 34 . . . . . . . . . Impact . | . . . . . . . . . . . . . . . . . . . . . . . . Slashing 277 | . . . 277 . . . . . . . . . . . . . . . . . . . . Piercing . | . . . . . . . . . . . . . . . . . . . . . . . . Highest Corruption 7 | . . . . . . . . . . 5 5 2 2 2 . . 2 . 4 4 . 6 7 Average Corruption 2 | . . . . . . . . . . 5 1 1 1 1 . . 1 . 3 2 . 2 6 Corruption Purged 18 | . . . . . . . . . . . 5 2 . 3 . . 2 . 2 4 . . . Effects 73 | . . . . . . . . . . 3 11 4 1 2 . . 6 . 1 13 . 2 30 Message Errors 21 | . . . . . . . . . . . 5 3 . . . . 3 . . 3 . . 7 Matter Fused 18 | . . . . . . . . . . 1 . . . . . . . . . 4 . 1 12 Heat Flow Errors 7 | . . . . . . . . . . 1 . . . . . . 1 . . 2 . . 3 Energy Discharges 11 | . . . . . . . . . . 1 1 1 1 1 . . 2 . 1 1 . . 2 Data Loss (minor) 14 | . . . . . . . . . . . 4 . . 1 . . . . . 3 . 1 5 Data Loss (major) 1 | . . . . . . . . . . . 1 . . . . . . . . . . . . Misfires 1 | . . . . . . . . . . . . . . . . . . . . . . . 1 Overload Shots . | . . . . . . . . . . . . . . . . . . . . . . . . Overflow Damage 44 | . . . 44 . . . . . . . . . . . . . . . . . . . . Projectiles . | . . . . . . . . . . . . . . . . . . . . . . . . Explosions . | . . . . . . . . . . . . . . . . . . . . . . . . Melee 44 | . . . 44 . . . . . . . . . . . . . . . . . . . . Knockbacks 1 | . . . . . . . . . . . . . . . . . . . 1 . . . . Impact 1 | . . . . . . . . . . . . . . . . . . . 1 . . . . Kinetic . | . . . . . . . . . . . . . . . . . . . . . . . . Secondary . | . . . . . . . . . . . . . . . . . . . . . . . . Self-Inflicted Damage 50 | . . . 31 . . . . . . . . . . . . . . . 19 . . . . Shots 1 | . . . 1 . . . . . . . . . . . . . . . . . . . . Rammed 3 | . . 1 1 . . . . . . . . . . . . . . . 1 . . . . Targets Rammed 3 | . . 1 1 . . . . . . . . . . . . . . . 1 . . . . Kicked . | . . . . . . . . . . . . . . . . . . . . . . . . Crushed . | . . . . . . . . . . . . . . . . . . . . . . . . Highest Temperature 363 | . . 40 180 40 . . 2 363 . 132 12 6 12 25 8 66 107 24 15 205 . . 233 Average Temperature 40 | . . 20 43 22 . . 2 183 . 31 8 4 7 8 5 21 25 11 12 87 . . 108 Received Heat Transfer 2117 | . 57 60 711 21 . . 81 63 45 237 . 18 12 114 . 33 42 412 24 136 . . 51 Effects 1 | . . . . . . . . 1 . . . . . . . . . . . . . . . Shutdowns 1 | . . . . . . . . 1 . . . . . . . . . . . . . . . Siege Activations . | . . . . . . . . . . . . . . . . . . . . . . . . Robots Corrupted 1 | . . . 1 . . . . . . . . . . . . . . . . . . . . Combat Hostiles 1 | . . . 1 . . . . . . . . . . . . . . . . . . . . Parts Fried 5 | . . . 5 . . . . . . . . . . . . . . . . . . . . Impact Corruptions . | . . . . . . . . . . . . . . . . . . . . . . . . Robots Melted 1 | . . . . . . . . . . . 1 . . . . . . . . . . . . Combat Hostiles 1 | . . . . . . . . . . . 1 . . . . . . . . . . . . Parts Melted 4 | . . . 1 . . . . . . . 3 . . . . . . . . . . . . Heat Transferred 2411 | . . . 1079 . . . . . . 111 703 . . . . 111 . . . . . . 407 Parts Sabotaged 5 | . . . . . . . . . . . . . . . . 5 . . . . . . . Parts Stolen . | . . . . . . . . . . . . . . . . . . . . . . . . Parts Stripped . | . . . . . . . . . . . . . . . . . . . . . . . . Power Chain Reactions 4 | . . . 4 . . . . . . . . . . . . . . . . . . . . Missiles Intercepted . | . . . . . . . . . . . . . . . . . . . . . . . . Alert | -11 -10 -10 -9 -9 -9 -8 -8 -8 -8 -8 -7 -7 -7 -7 -6 -6 -5 -5 -4 -4 -4 -4 -3 ------- Run | Scr Mat Min Mat Min Exi Min Mat Gar Mat Gar Fac Gar Fac Gar Fac Gar Fac Gar Fac Upp Upp War Pro Peak Influence 511 | . 35 140 288 71 . . 30 44 34 24 511 87 106 120 63 418 229 103 51 . . . . Average Influence 59 | . 29 46 100 71 . . 2 7 14 6 47 76 34 45 39 220 57 63 6 . . . . Maximum Alert Level 2 | . . . 1 . . . . . . . 2 . . . . 2 1 . . . . . . Low Security (%) 92 | . . . . . . . . . . . . . . . . . . . . . . . . Level 1 6 | . . . . . . . . . . . . . . . . . . . . . . . . Level 2 1 | . . . . . . . . . . . . . . . . . . . . . . . . Level 3 . | . . . . . . . . . . . . . . . . . . . . . . . . Level 4 . | . . . . . . . . . . . . . . . . . . . . . . . . Level 5 . | . . . . . . . . . . . . . . . . . . . . . . . . High Security . | . . . . . . . . . . . . . . . . . . . . . . . . Max Security . | . . . . . . . . . . . . . . . . . . . . . . . . Squads Dispatched 22 | . . . 5 . . . 1 . . . 4 . 2 . 1 . 7 . 2 . . . . Investigation 6 | . . . 2 . . . 1 . . . . . 1 . . . 2 . . . . . . Extermination 11 | . . . . . . . . . . . 4 . 1 . 1 . 4 . 1 . . . . Reinforcement 5 | . . . 3 . . . . . . . . . . . . . 1 . 1 . . . . Assault . | . . . . . . . . . . . . . . . . . . . . . . . . Garrison . | . . . . . . . . . . . . . . . . . . . . . . . . Intercept . | . . . . . . . . . . . . . . . . . . . . . . . . Construction Impeded 1 | . . . . . . . . . . . . . . . . . 1 . . . . . . Haulers Reinforced . | . . . . . . . . . . . . . . . . . . . . . . . . Alert ID Control Effect 15 | . . . . . . . . . . . . . . 10 1 2 1 1 . . . . . Stealth | -11 -10 -10 -9 -9 -9 -8 -8 -8 -8 -8 -7 -7 -7 -7 -6 -6 -5 -5 -4 -4 -4 -4 -3 --------- Run | Scr Mat Min Mat Min Exi Min Mat Gar Mat Gar Fac Gar Fac Gar Fac Gar Fac Gar Fac Upp Upp War Pro Distress Signals 9 | . 1 . 3 . . . 1 . 3 . . . . . . . . . 1 . . . . Communications Jammed . | . . . . . . . . . . . . . . . . . . . . . . . . Distress Signals . | . . . . . . . . . . . . . . . . . . . . . . . . Times Spotted 297 | . 7 9 49 5 . 6 6 6 10 13 9 11 11 36 4 22 18 27 19 14 3 1 11 Peak Tracking Total 15 | . 6 3 5 3 . 6 6 2 8 8 3 13 4 9 2 5 6 15 8 6 2 1 9 Tactical Retreats 49 | . 1 1 4 1 . 2 . 1 6 2 2 . 3 6 1 2 2 2 3 6 1 . 3 Traps | -11 -10 -10 -9 -9 -9 -8 -8 -8 -8 -8 -7 -7 -7 -7 -6 -6 -5 -5 -4 -4 -4 -4 -3 ------- Run | Scr Mat Min Mat Min Exi Min Mat Gar Mat Gar Fac Gar Fac Gar Fac Gar Fac Gar Fac Upp Upp War Pro Traps Triggered 33 | . . . 2 . . . 1 5 . 2 1 4 2 8 . 3 3 1 1 . . . . Indirectly . | . . . . . . . . . . . . . . . . . . . . . . . . Trap Hack Attempts . | . . . . . . . . . . . . . . . . . . . . . . . . Triggered . | . . . . . . . . . . . . . . . . . . . . . . . . Disarmed . | . . . . . . . . . . . . . . . . . . . . . . . . Reprogrammed . | . . . . . . . . . . . . . . . . . . . . . . . . Reused 8 | . . . . . . . . . 5 . . . . 1 1 . . 1 . . . . . Traps Reconfigurated 45 | . . . . . . . . 8 18 3 . 1 . 4 6 . 1 4 . . . . . Traps Extracted 1 | . . . . . . . . . . . . . . . 1 . . . . . . . . Installed 1 | . . . . . . . . . . . . . . . 1 . . . . . . . . Triggered 8 | . . . . . . . . . 5 . . . . 1 1 . . 1 . . . . . Machines | -11 -10 -10 -9 -9 -9 -8 -8 -8 -8 -8 -7 -7 -7 -7 -6 -6 -5 -5 -4 -4 -4 -4 -3 ---------- Run | Scr Mat Min Mat Min Exi Min Mat Gar Mat Gar Fac Gar Fac Gar Fac Gar Fac Gar Fac Upp Upp War Pro Machines Disabled 10 | . . . . . . . . . . . . 1 . 4 . 2 1 1 . . . . 1 Max in Single Turn 1 | . . . . . . . . . . . . 1 . 1 . 1 . 1 . . . . 1 Garrison Relay 13 | . . . . . . . . 1 . 2 . 1 . 4 . 3 . 2 . . . . . Machines Sabotaged . | . . . . . . . . . . . . . . . . . . . . . . . . Garrisons Compromised . | . . . . . . . . . . . . . . . . . . . . . . . . Overloaded Fab Kills . | . . . . . . . . . . . . . . . . . . . . . . . . Fab Network Shutdowns 1 | . . . . . . . . . . . 1 . . . . . . . . . . . . Hacking | -11 -10 -10 -9 -9 -9 -8 -8 -8 -8 -8 -7 -7 -7 -7 -6 -6 -5 -5 -4 -4 -4 -4 -3 --------- Run | Scr Mat Min Mat Min Exi Min Mat Gar Mat Gar Fac Gar Fac Gar Fac Gar Fac Gar Fac Upp Upp War Pro Machines Accessed 64 | . 3 1 10 . 5 . 2 . 7 . 10 . 7 . 5 . 9 . 4 . 1 . . Terminals 30 | . 3 1 6 . . . . . 5 . 5 . 3 . 3 . 2 . 2 . . . . Fabricators 5 | . . . . . . . . . . . 1 . 1 . . . 3 . . . . . . Repair Stations 5 | . . . 1 . . . . . 1 . . . 1 . . . 1 . 1 . . . . Recycling Units 7 | . . . 2 . . . 1 . . . 2 . . . 1 . 1 . . . . . . Scanalyzers 5 | . . . 1 . . . . . . . 1 . 1 . . . 1 . 1 . . . . Garrison Access 6 | . . . . . . . 1 . 1 . 1 . 1 . 1 . 1 . . . . . . Total Hacks 280 | . 9 2 37 . 49 . 5 . 27 . 34 . 27 . 14 . 61 . 14 . 1 . . Successful 224 | . 7 1 31 . 49 . 5 . 21 . 27 . 19 . 10 . 45 . 8 . 1 . . Failed 55 | . 2 1 6 . . . . . 6 . 7 . 8 . 4 . 15 . 6 . . . . Catastrophic 4 | . . 1 1 . . . . . . . 1 . . . . . 1 . . . . . . Database Lockouts 2 | . . . . . . . . . . . . . . . . . 2 . . . . . . Manual 48 | . 5 1 11 . 1 . . . 7 . 7 . 6 . 1 . 7 . 1 . . . 1 Terminals 146 | . 9 2 30 . . . . . 19 . 25 . 15 . 12 . 24 . 10 . . . . Fabricators 20 | . . . . . . . . . . . 2 . 4 . . . 14 . . . . . . Repair Stations 14 | . . . 2 . . . . . 6 . . . 2 . . . 2 . 2 . . . . Recycling Units 11 | . . . 3 . . . 3 . . . 3 . . . 1 . 1 . . . . . . Scanalyzers 30 | . . . 2 . . . . . . . 3 . 4 . . . 19 . 2 . . . . Garrison Access 9 | . . . . . . . 2 . 2 . 1 . 2 . 1 . 1 . . . . . . Terminal Hacks 152 | . 7 1 24 . 49 . . . 13 . 19 . 9 . 8 . 16 . 5 . 1 . . Record 63 | . . . 2 . 48 . . . . . 4 . . . 1 . 5 . 3 . . . . Robot Analysis 5 | . . . 1 . . . . . 1 . 2 . 1 . . . . . . . . . . Prototype ID Bank 7 | . . . 2 . . . . . . . 1 . 1 . 2 . 1 . . . . . . Open Door 1 | . . . . . . . . . . . . . . . . . . . . . 1 . . Level Access Points 2 | . 1 . . . . . . . 1 . . . . . . . . . . . . . . Branch Access Points 3 | . . . . . . . . . 1 . 1 . . . . . 1 . . . . . . Emergency Access Points 5 | . . . . . . . . . 1 . 1 . 2 . 1 . . . . . . . . Alert Level 6 | . . . 3 . . . . . 1 . 1 . . . 1 . . . . . . . . Unreport Threat 5 | . . . 2 . . . . . . . 3 . . . . . . . . . . . . Locate Traps 15 | . 2 . 4 . . . . . 3 . 2 . 1 . 2 . 1 . . . . . . Dispatch Records 2 | . 1 1 . . . . . . . . . . . . . . . . . . . . . Maintenance Status 1 | . . . 1 . . . . . . . . . . . . . . . . . . . . Security Status 3 | . 1 . . . . . . . . . . . 1 . . . 1 . . . . . . Surveillance Status 6 | . 1 . 1 . . . . . 1 . . . 1 . . . 1 . 1 . . . . Patrol Status 5 | . 1 . 1 . . . . . . . 1 . 1 . . . 1 . . . . . . Transport Status 1 | . . . 1 . . . . . . . . . . . . . . . . . . . . Recall Investigation 4 | . . . 1 . . . . . . . 1 . . . . . 2 . . . . . . Hauler Manifests 4 | . . . 1 . . . . . 1 . 1 . . . . . 1 . . . . . . Registered Components 4 | . . . 1 . . . . . 1 . . . 1 . . . 1 . . . . . . Registered Prototypes 3 | . . . 1 . . . . . 1 . . . . . . . . . 1 . . . . Zone Layout 6 | . . . 2 . . . . . 1 . 1 . . . 1 . 1 . . . . . . EX-Prototype ID Bank 1 | . . . . . 1 . . . . . . . . . . . . . . . . . . Fabricator Hacks 11 | . . . . . . . . . . . 2 . 3 . . . 6 . . . . . . Load Schematic 3 | . . . . . . . . . . . . . 1 . . . 2 . . . . . . Build 8 | . . . . . . . . . . . 2 . 2 . . . 4 . . . . . . Repair Station Hacks 13 | . . . 2 . . . . . 6 . . . 1 . . . 2 . 2 . . . . Scan Component 7 | . . . 1 . . . . . 3 . . . 1 . . . 1 . 1 . . . . Repair 6 | . . . 1 . . . . . 3 . . . . . . . 1 . 1 . . . . Recycling Unit Hacks 10 | . . . 3 . . . 3 . . . 2 . . . 1 . 1 . . . . . . Process 2 | . . . 1 . . . 1 . . . . . . . . . . . . . . . . Report Inventory 7 | . . . 2 . . . 1 . . . 2 . . . 1 . 1 . . . . . . Retrieve Matter 1 | . . . . . . . 1 . . . . . . . . . . . . . . . . Scanalyzer 29 | . . . 2 . . . . . . . 3 . 4 . . . 19 . 1 . . . . Insert Component 14 | . . . 1 . . . . . . . 1 . 2 . . . 9 . 1 . . . . Analyze 15 | . . . 1 . . . . . . . 2 . 2 . . . 10 . . . . . . Garrison Access Hacks 9 | . . . . . . . 2 . 2 . 1 . 2 . 1 . 1 . . . . . . Unlock Access 6 | . . . . . . . 1 . 1 . 1 . 1 . 1 . 1 . . . . . . Coupler Status 3 | . . . . . . . 1 . 1 . . . 1 . . . . . . . . . . Unauthorized Hacks 3 | . . . . . . . . . 1 . . . 2 . . . . . . . . . . Terminals . | . . . . . . . . . . . . . . . . . . . . . . . . Fabricators . | . . . . . . . . . . . . . . . . . . . . . . . . Repair Stations . | . . . . . . . . . . . . . . . . . . . . . . . . Recycling Units . | . . . . . . . . . . . . . . . . . . . . . . . . Scanalyzers . | . . . . . . . . . . . . . . . . . . . . . . . . Garrison Access . | . . . . . . . . . . . . . . . . . . . . . . . . Data Cores Recovered 1 | . 1 . . . . . . . . . . . . . . . . . . . . . . Used 1 | . 1 . . . . . . . . . . . . . . . . . . . . . . Hacking Detections 46 | . 3 1 8 . . . 2 . 6 . 8 . 5 . 3 . 6 . 4 . . . . Full Trace Events 4 | . 1 . . . . . . . 1 . . . 1 . . . 1 . . . . . . Feedback Events . | . . . . . . . . . . . . . . . . . . . . . . . . Feedback Blocked . | . . . . . . . . . . . . . . . . . . . . . . . . Robot Schematics Acquired . | . . . . . . . . . . . . . . . . . . . . . . . . Robots Built 7 | . . . . . . . . . . . 6 . 1 . . . . . . . . . . Matter 657 | . . . . . . . . . . . 504 . 153 . . . . . . . . . . Time 169 | . . . . . . . . . . . 88 . 81 . . . . . . . . . . Total Robot Build Rating 25 | . . . . . . . . . . . 24 . 1 . . . . . . . . . . Part Schematics Acquired 12 | . . . 1 . . . . . . . 1 . 1 . . . 9 . . . . . . Parts Built 7 | . . . . . . . . . . . . . 1 . . . 6 . . . . . . Matter 928 | . . . . . . . . . . . . . 102 . . . 826 . . . . . . Time 405 | . . . . . . . . . . . . . 51 . . . 354 . . . . . . Total Part Build Rating 36 | . . . . . . . . . . . . . 1 . . . 35 . . . . . . Parts Repaired 6 | . . . 1 . . . . . 3 . . . . . . . 1 . 1 . . . . Time 225 | . . . 26 . . . . . 121 . . . . . . . 22 . 56 . . . . Parts Recycled . | . . . . . . . . . . . . . . . . . . . . . . . . Recycled Matter 132 | . . . 131 . . . 1 . . . . . . . . . . . . . . . . Retrieved Matter 1 | . . . . . . . 1 . . . . . . . . . . . . . . . . Retrieved Components . | . . . . . . . . . . . . . . . . . . . . . . . . Parts Scanalyzed 14 | . . . 1 . . . . . . . 1 . 2 . . . 9 . 1 . . . . Part Schematics Acquired 12 | . . . 1 . . . . . . . 1 . 1 . . . 9 . . . . . . Parts Damaged 3 | . . . . . . . . . . . . . 1 . . . 2 . . . . . . Bothacking | -11 -10 -10 -9 -9 -9 -8 -8 -8 -8 -8 -7 -7 -7 -7 -6 -6 -5 -5 -4 -4 -4 -4 -3 ------------ Run | Scr Mat Min Mat Min Exi Min Mat Gar Mat Gar Fac Gar Fac Gar Fac Gar Fac Gar Fac Upp Upp War Pro Used RIF Installer 5 | . . . . . . . . 1 . 1 . 1 . 1 . 1 . . . . . . . Robot Detection 1 | . . . . . . . . . . 1 . . . . . . . . . . . . . Patrol Navigation 1 | . . . . . . . . . . . . . . 1 . . . . . . . . . Alert ID Control 1 | . . . . . . . . . . . . 1 . . . . . . . . . . . Structural Interface 1 | . . . . . . . . . . . . . . . . 1 . . . . . . . Robots Hacked 72 | . . . . . 6 . . 2 . 3 1 . 2 22 6 9 9 10 1 1 . . . Non-combat 16 | . . . . . 3 . . . . . 1 . . . 5 . 6 . 1 . . . . Combat 56 | . . . . . 3 . . 2 . 3 . . 2 22 1 9 3 10 . 1 . . . Robot Hacks Applied 94 | . . . . . 6 . . 4 . 3 1 . 3 31 7 10 16 11 1 1 . . . parse_system 18 | . . . . . 6 . . . . . . . . 1 1 1 7 2 . . . . . find_chute 1 | . . . . . . . . . . . . . . . 1 . . . . . . . . find_fabricator 2 | . . . . . . . . . . . . . . . 1 . 1 . . . . . . drop_inventory 3 | . . . . . . . . . . . . . . . 2 . 1 . . . . . . find_recycling 1 | . . . . . . . . . . . . . . . . . 1 . . . . . . find_shortcuts 1 | . . . . . . . . . . . . . . 1 . . . . . . . . . link_fov 1 | . . . . . . . . . . . 1 . . . . . . . . . . . . reboot_propulsion 1 | . . . . . . . . . . . . . . 1 . . . . . . . . . scatter_targeting 2 | . . . . . . . . . . 2 . . . . . . . . . . . . . spike_heat 1 | . . . . . . . . . . . . . . 1 . . . . . . . . . overload_power 2 | . . . . . . . . . . . . . . 1 . 1 . . . . . . . wipe_record 2 | . . . . . . . . . . . . . . . . . 1 1 . . . . . disable_weapons 6 | . . . . . . . . . . . . . . 4 . 2 . . . . . . . reboot_system 1 | . . . . . . . . . . . . . . . . . 1 . . . . . . go_dormant 5 | . . . . . . . . 2 . . . . 1 2 . . . . . . . . . overwrite_iff 14 | . . . . . . . . . . . . . . 7 . . . 7 . . . . . formatsys_low 2 | . . . . . . . . . . . . . . . . . 2 . . . . . . formatsys_high 31 | . . . . . . . . 2 . 1 . . 2 13 2 6 2 1 1 1 . . . Relay Couplers Released 52 | . . . . . . . . 3 . 7 . 5 . 16 . 12 . 9 . . . . . Machine Destruction 52 | . . . . . . . . 3 . 7 . 5 . 16 . 12 . 9 . . . . . Attached 34 | . . . . . . . . 3 . 1 3 1 1 11 2 8 1 2 1 . . . . Robots Rewired 8 | . . . 1 . . . . . . . . . . . . 6 . . . 1 . . . Allies Hacked 8 | . . . . . . . . . . . 2 . 2 . . 3 1 . . . . . . Hacks Repelled . | . . . . . . . . . . . . . . . . . . . . . . . . Allies | -11 -10 -10 -9 -9 -9 -8 -8 -8 -8 -8 -7 -7 -7 -7 -6 -6 -5 -5 -4 -4 -4 -4 -3 -------- Run | Scr Mat Min Mat Min Exi Min Mat Gar Mat Gar Fac Gar Fac Gar Fac Gar Fac Gar Fac Upp Upp War Pro Total Allies 63 | . . 1 1 . . . . 2 . 1 6 . 3 20 2 12 4 8 1 2 . . . Largest Group 7 | . . 1 1 . . . . 2 2 1 6 . 2 5 6 7 7 2 1 1 . . . Highest-Rated Group 242 | . . 31 15 . . . . 32 32 16 120 . 22 120 187 242 170 78 10 64 . . . Highest-Rated Ally 64 | . . 31 15 . . . . 16 16 16 20 . 12 38 41 47 41 49 10 64 . . . Total Orders 89 | . . . . . . . . 2 2 2 . . 4 5 6 10 55 . 3 . . . . STAY 8 | . . . . . . . . . 2 . . . . . 2 1 3 . . . . . . GOTO 59 | . . . . . . . . 1 . 1 . . 2 2 2 6 44 . 1 . . . . ROAM 1 | . . . . . . . . . . . . . . 1 . . . . . . . . . FOLLOW 13 | . . . . . . . . 1 . 1 . . 1 2 2 3 3 . . . . . . AID 5 | . . . . . . . . . . . . . . . . . 5 . . . . . . COLLECT 1 | . . . . . . . . . . . . . 1 . . . . . . . . . . EXPLORE 2 | . . . . . . . . . . . . . . . . . . . 2 . . . . Ally Attacks 369 | . . . 4 . . . . 6 . 2 68 . 10 86 6 92 59 26 . 10 . . . Total Damage 7835 | . . . 73 . . . . 88 . 27 1116 . 114 1472 225 2259 1714 337 . 410 . . . Kills 53 | . . . 2 . . . . 2 . . 6 . . 11 2 18 11 1 . . . . . Allies Corrupted 4 | . . . . . . . . . . . 1 . . . . . 3 . . . . . . Allies Melted 1 | . . . . . . . . . . . 1 . . . . . . . . . . . . Intel | -11 -10 -10 -9 -9 -9 -8 -8 -8 -8 -8 -7 -7 -7 -7 -6 -6 -5 -5 -4 -4 -4 -4 -3 ------- Run | Scr Mat Min Mat Min Exi Min Mat Gar Mat Gar Fac Gar Fac Gar Fac Gar Fac Gar Fac Upp Upp War Pro Robot Analysis Total 5 | . . . 1 . . . . . 1 . 2 . 1 . . . . . . . . . . Derelict Logs Recovered 5 | . . 2 . 2 . . . . . . . . . . . . . . . . 1 . . Drone Launches 2 | . . . . . . . . . . . . . . . . . . . 2 . . . . Drone Recoveries . | . . . . . . . . . . . . . . . . . . . . . . . . Exploration | -11 -10 -10 -9 -9 -9 -8 -8 -8 -8 -8 -7 -7 -7 -7 -6 -6 -5 -5 -4 -4 -4 -4 -3 ------------- Run | Scr Mat Min Mat Min Exi Min Mat Gar Mat Gar Fac Gar Fac Gar Fac Gar Fac Gar Fac Upp Upp War Pro Turns Passed 19639 | 56 354 1230 2462 305 792 159 466 532 848 373 2331 295 986 1028 903 992 2370 192 515 1030 212 152 1056 Spaces Moved 20044 | 36 260 688 1292 418 866 276 461 334 840 288 1824 249 1828 1084 1466 1212 3440 203 674 928 364 253 760 Core 3553 | 10 . . 47 239 736 100 254 173 191 53 478 1 78 15 81 207 55 . . 12 340 . 483 Treads 1761 | . 62 688 992 . . . . . . . . . . . . . . . . 19 . . . Legs 431 | 26 198 . . . . . . . . . . . . . . . . . . . . . 207 Wheels . | . . . . . . . . . . . . . . . . . . . . . . . . Hover 3269 | . . . . . . . . . . . . . . . . . 1495 203 674 897 . . . Flight 11030 | . . . 253 179 130 176 207 161 649 235 1346 248 1750 1069 1385 1005 1890 . . . 24 253 70 Fastest Speed 32 | 50 120 160 32 32 32 32 32 32 32 32 32 34 37 37 34 34 36 36 43 50 40 40 40 Average Speed 68 | 113 129 160 135 70 89 56 69 67 47 50 74 52 40 46 39 45 46 56 55 106 53 40 129 Slowest Speed 700 | 120 160 160 180 100 100 100 100 100 100 250 350 109 117 280 150 100 700 120 116 160 150 40 200 Overloaded Moves . | . . . . . . . . . . . . . . . . . . . . . . . . Propulsion Burnouts . | . . . . . . . . . . . . . . . . . . . . . . . . Robots Hopped 74 | . . . 1 . . . 7 . 9 6 12 . 10 2 9 3 15 . . . . . . Cave-ins Triggered . | . . . . . . . . . . . . . . . . . . . . . . . . Exploration Rate (%) 53 | 3 48 99 85 93 92 63 29 45 44 43 28 57 31 79 18 85 29 54 16 83 46 23 83 Regions Visited 23 Branch Regions 8 Pre-discovered Areas 3 | . . 1 . 1 1 . . . . . . . . . . . . . . . . . . Known Exits Taken 13 | . . 1 1 1 1 1 1 . 1 . 1 . 1 . 1 . 1 . . 1 1 . . Unknown Exits Taken 4 | 1 1 . . . . . . . . . . . . . . . . . 1 . . 1 . Scrap Searched 7 | . . 2 . 1 . 2 . . . . . . . . . . . . . 1 1 . . Spaces Dug 2 | . . 2 . . . . . . . . . . . . . . . . . . . . . Terrain Destroyed 26 | . . 2 24 . . . . . . . . . . . . . . . . . . . . Melee . | . . . . . . . . . . . . . . . . . . . . . . . . Projectile 2 | . . 2 . . . . . . . . . . . . . . . . . . . . . AOE 24 | . . . 24 . . . . . . . . . . . . . . . . . . . . Actions | -11 -10 -10 -9 -9 -9 -8 -8 -8 -8 -8 -7 -7 -7 -7 -6 -6 -5 -5 -4 -4 -4 -4 -3 --------- Run | Scr Mat Min Mat Min Exi Min Mat Gar Mat Gar Fac Gar Fac Gar Fac Gar Fac Gar Fac Upp Upp War Pro Total 25453 | 51 278 787 1795 425 877 277 599 639 1276 468 2775 409 2072 1574 1775 1625 4196 269 815 972 380 303 816 Wait 3838 | . 1 63 200 1 . 1 141 194 417 97 872 75 172 260 271 244 597 25 106 16 2 51 32 Move 19884 | 35 259 687 1289 417 865 275 449 333 822 276 1800 248 1808 1079 1448 1206 3411 202 673 927 363 252 760 Hop 69 | . . . 1 . . . 5 . 9 5 12 . 10 2 9 2 14 . . . . . . Pick Up 207 | 10 6 3 37 2 2 . 2 6 7 5 13 2 15 20 10 14 31 2 12 5 2 . 1 Fast Attach 73 | . 4 1 12 1 . . . 4 3 . 5 1 2 5 2 18 5 1 . 1 5 . 3 Attach 117 | 6 . . 11 . . . 2 2 . 7 22 . 3 11 4 3 10 8 14 10 2 . 2 Detach 33 | . . . . . . . . . . 2 15 . 1 2 . . 4 1 2 3 1 . 2 Swap 90 | . . 1 13 . 1 . . 2 10 3 . 6 5 14 8 5 14 7 1 . . . . Drop 174 | . 7 4 33 3 2 . . 7 7 . 9 3 11 16 11 24 30 2 1 1 2 . 1 Fire 389 | . 1 27 177 1 . . . . . 38 25 2 6 40 10 28 10 7 3 1 . . 13 Melee 59 | . . . 14 . 7 1 . 5 1 3 . . . 9 . . 11 8 . . . . . Ram 1 | . . . . . . . . . . . . . . . . . . . 1 . . . . Kick . | . . . . . . . . . . . . . . . . . . . . . . . . Crush 2 | . . 1 1 . . . . . . . . . . . . . . . . . . . . Escape Stasis 441 | . . . . . . . . 84 . 31 . 72 36 108 . 51 54 5 . . . . . Rewire 74 | . . . 7 . . . . 2 . 1 2 . 3 8 1 30 5 1 1 8 3 . 2 Trap 1 | . . . . . . . . . . . . . . . 1 . . . . . . . . Miscellaneous 1 | . . . . . . . . . . . . . . . . . . . 1 . . . . Route ------- -11/Scrapyard -10/Materials (discovered 5 exits: Mat x3 / *Min x2) -10/Mines (discovered 2 exits: *Mat x2) -9/Materials (discovered 4 exits: *Mat x2 / *Min / [*Sto]) -9/Mines (discovered 3 exits: *Mat x2 / *Exi) -9/Exiles (discovered 2 exits: *Min x2) -8/Mines (discovered 2 exits: *Mat x2) -8/Materials -8/Garrison -8/Materials (discovered 4 exits: Fac x3 / Gar) -8/Garrison (discovered 2 exits: *Fac x2) -7/Factory (discovered 4 exits: *Fac / Low x2 / Gar) -7/Garrison (discovered 2 exits: *Fac x2) -7/Factory (discovered 4 exits: *Fac x2 / *Low / Gar) -7/Garrison (discovered 3 exits: *Fac x3) -6/Factory -6/Garrison (discovered 2 exits: *Fac x2) -5/Factory (discovered 4 exits: *Fac / Upp x2 / Gar) -5/Garrison -4/Factory -4/Upper Caves -4/Upper Caves (discovered 2 exits: *Res / *War) -4/Warlord -3/Proximity Caves History --------- Turn | Location | Event 11 | -11/Scrapyard | Discovered new exit (range 15) 57 | -11/Scrapyard | Entered Materials 76 | -10/Materials | Identified exit to Materials 128 | -10/Materials | Discovered new exit (range 14) 302 | -10/Materials | Build established: Mutant 341 | -10/Materials | Discovered new exit (range 13) 411 | -10/Materials | Entered Mines 442 | -10/Mines | Learned location of Zion (-6) 1012 | -10/Mines | Discovered exit to Materials (range 9) 1120 | -10/Mines | Received a Mining Laser from a helpful Derelict 1218 | -10/Mines | Discovered exit to Materials (range 11) 1641 | -10/Mines | Entered Materials 1641 | -9/Materials | Evolved 2 slots: Utility x2 1642 | -9/Materials | Identified exit to Mines 2386 | -9/Materials | Repaired Sensor Array? 2708 | -9/Materials | Discovered new exit (range 15) 2783 | -9/Materials | Identified exit to Materials 3112 | -9/Materials | Build established: Scavenger-Mutant 3466 | -9/Materials | Discovered exit to Materials (range 16) 3718 | -9/Materials | Core integrity fell below 50% 3794 | -9/Materials | Build established: Mutant 3829 | -9/Materials | Discovered new exit (range 14) 4103 | -9/Materials | Entered Mines 4105 | -9/Mines | A weapon hastily lodged in a ceiling crevice suddenly fell to the ground 4159 | -9/Mines | Identified exit to Exiles 4225 | -9/Mines | Found a hidden stash of uninstalled traps 4301 | -9/Mines | Discovered exit to Materials (range 4) 4335 | -9/Mines | Discovered exit to Materials (range 10) 4342 | -9/Mines | Received a Rocket Launcher from a helpful Derelict 4407 | -9/Mines | Deemed a non-threat by the Exiles lab entrance 4408 | -9/Mines | Entered Exiles 4409 | -9/Exiles | Identified exit to Mines 4413 | -9/Exiles | Discovered exit to Mines (range 15) 4423 | -9/Exiles | Met 8R-AWN 4427 | -9/Exiles | Met EX-HEX 4449 | -9/Exiles | Visited The Gauntlet 4528 | -9/Exiles | Met EX-DEC 4595 | -9/Exiles | Met EX-BIN 4608 | -9/Exiles | Aligned with FarCom system 4609 | -9/Exiles | Given EX-Vault access code 4635 | -9/Exiles | Opened EX-Vault 4644 | -9/Exiles | Found Trap Reconfigurator 4694 | -9/Exiles | Warned to stay clear of 0b10 Research branches 5200 | -9/Exiles | Left Exiles lab with Trap Reconfigurator 5200 | -9/Exiles | Entered Mines 5203 | -8/Mines | Discovered exit to Materials (range 8) 5312 | -8/Mines | Discovered exit to Materials (range 8) 5359 | -8/Mines | Entered Materials 5359 | -8/Materials | Evolved 2 slots: Utility x2 5684 | -8/Materials | Build established: Hacker-Mutant 5825 | -8/Materials | Identified exit to Garrison 5825 | -8/Materials | Entered Garrison 5830 | -8/Garrison | Installed Relay Interface Framework 6050 | -8/Garrison | Triggered checkpoint 6072 | -8/Garrison | Triggered checkpoint 6184 | -8/Garrison | Garrison Relay disabled 6322 | -8/Garrison | Discovered new exit (range 15) 6357 | -8/Garrison | Entered Materials 6357 | -8/Materials | Accompanied by 2 allies 6521 | -8/Materials | Identified exit to Factory 6628 | -8/Materials | Repaired Imp. Datajack 6681 | -8/Materials | Repaired Imp. Flight Unit 6714 | -8/Materials | Repaired Imp. Ion Engine? 7044 | -8/Materials | Build established: Scavenger-Sprinter 7205 | -8/Materials | Identified exit to Garrison 7205 | -8/Materials | Entered Garrison 7228 | -8/Garrison | Triggered checkpoint 7412 | -8/Garrison | Triggered checkpoint 7414 | -8/Garrison | Core integrity fell below 50% 7423 | -8/Garrison | Garrison Relay disabled 7462 | -8/Garrison | Discovered exit to Factory (range 8) 7482 | -8/Garrison | Lost 7 parts (1p1n2u3w) 7514 | -8/Garrison | Garrison Relay disabled 7520 | -8/Garrison | Triggered checkpoint 7544 | -8/Garrison | Triggered checkpoint 7550 | -8/Garrison | Lost 3 parts (3u) 7572 | -8/Garrison | Discovered exit to Factory (range 10) 7577 | -8/Garrison | Expanded RIF knowledge: Robot Detection 7578 | -8/Garrison | Entered Factory 7578 | -7/Factory | Evolved 2 slots: Utility x2 7599 | -7/Factory | Identified exit to Lower Caves 8066 | -7/Factory | Build established: Hacker-Mutant 9213 | -7/Factory | Discovered new exit (range 5) 9405 | -7/Factory | Fabricated B-48 Gladiator (x3) 9450 | -7/Factory | Fabricated B-48 Gladiator (x3) 9675 | -7/Factory | Local fabrication network quarantined 9909 | -7/Factory | Identified exit to Garrison 9909 | -7/Factory | Entered Garrison 9942 | -7/Garrison | Garrison Relay disabled 9959 | -7/Garrison | Triggered checkpoint 10107 | -7/Garrison | Discovered new exit (range 8) 10150 | -7/Garrison | Triggered checkpoint 10182 | -7/Garrison | Triggered checkpoint 10198 | -7/Garrison | Discovered new exit (range 10) 10203 | -7/Garrison | Expanded RIF knowledge: Alert ID Control 10204 | -7/Garrison | Entered Factory 10293 | -7/Factory | Discovered exit to Lower Caves (range 15) 10503 | -7/Factory | Build established: Bothacker-Mutant 10542 | -7/Factory | Discovered new exit (range 10) 10697 | -7/Factory | Fabricated A-02 Transporter? 10799 | -7/Factory | Fabricated Datajack? 11114 | -7/Factory | Discovered new exit (range 15) 11190 | -7/Factory | Identified exit to Garrison 11190 | -7/Factory | Entered Garrison 11202 | -7/Garrison | Triggered checkpoint 11247 | -7/Garrison | Garrison Relay disabled 11558 | -7/Garrison | Triggered checkpoint 11558 | -7/Garrison | Triggered checkpoint 11635 | -7/Garrison | Discovered new exit (range 11) 11670 | -7/Garrison | Triggered checkpoint 11679 | -7/Garrison | Garrison Relay disabled 11803 | -7/Garrison | Discovered new exit (range 10) 11819 | -7/Garrison | Triggered checkpoint 11857 | -7/Garrison | Garrison Relay disabled 11927 | -7/Garrison | Triggered checkpoint 12150 | -7/Garrison | Triggered checkpoint 12151 | -7/Garrison | Garrison Relay disabled 12169 | -7/Garrison | Discovered new exit (range 13) 12183 | -7/Garrison | Expanded RIF knowledge: Patrol Navigation 12218 | -7/Garrison | Entered Factory 12218 | -6/Factory | Accompanied by 4 allies 12218 | -6/Factory | Evolved 2 slots: Utility x2 13049 | -6/Factory | Build established: Hacker-Mutant 13121 | -6/Factory | Identified exit to Garrison 13121 | -6/Factory | Entered Garrison 13121 | -6/Garrison | Accompanied by 4 allies 13216 | -6/Garrison | Triggered checkpoint 13288 | -6/Garrison | P-60 Hacker assimilated allied Veteran 5a 13520 | -6/Garrison | Triggered checkpoint 13566 | -6/Garrison | Triggered checkpoint 13590 | -6/Garrison | Triggered checkpoint 13601 | -6/Garrison | Triggered checkpoint 13614 | -6/Garrison | Build established: Bothacker-Mutant 13756 | -6/Garrison | Discovered new exit (range 13) 13774 | -6/Garrison | Expanded RIF knowledge: Structural Interface 13842 | -6/Garrison | Garrison Relay disabled 13874 | -6/Garrison | Triggered checkpoint 13906 | -6/Garrison | Discovered new exit (range 10) 13936 | -6/Garrison | Triggered checkpoint 13943 | -6/Garrison | Garrison Relay disabled 14113 | -6/Garrison | Entered Factory 14113 | -5/Factory | Accompanied by 5 allies 14113 | -5/Factory | Evolved 2 slots: Utility x2 14235 | -5/Factory | Repaired Remote Datajack? 14506 | -5/Factory | Discovered new exit (range 12) 14536 | -5/Factory | Fabricated Reaction Control System? 14807 | -5/Factory | Build established: Hacker-Mutant 14938 | -5/Factory | Identified exit to Upper Caves 14971 | -5/Factory | Central database locked down 15089 | -5/Factory | Fabricated Antigrav System? 15798 | -5/Factory | Fabricated Antigrav System? 15977 | -5/Factory | Fabricated Component Analysis Suite? 16430 | -5/Factory | P-70 Sage assimilated allied Soldier 5d 16483 | -5/Factory | Identified exit to Garrison 16483 | -5/Factory | Entered Garrison 16504 | -5/Garrison | Spotted B-75 Beast 16504 | -5/Garrison | Spotted B-75 Beast 16526 | -5/Garrison | Triggered checkpoint 16526 | -5/Garrison | Triggered checkpoint 16549 | -5/Garrison | Garrison Relay disabled 16573 | -5/Garrison | Garrison Relay disabled 16608 | -5/Garrison | Lost 4 parts (2n1u1w) 16626 | -5/Garrison | Triggered checkpoint 16626 | -5/Garrison | Spotted B-75 Beast 16637 | -5/Garrison | Triggered checkpoint 16671 | -5/Garrison | Discovered new exit (range 8) 16675 | -5/Garrison | Entered Factory 16675 | -4/Factory | Evolved 2 slots: Propulsion x2 16690 | -4/Factory | Lost 6 parts (2n4u) 16842 | -4/Factory | Repaired Imp. Remote Datajack? 17143 | -4/Factory | Discovered new exit (range 54) 17149 | -4/Factory | Lost 8 parts (1p2n4u1w) 17154 | -4/Factory | Spotted B-86 Titan 17190 | -4/Factory | Entered Upper Caves 17216 | -4/Upper Caves | Lost 6 parts (1p1n3u1w) 17302 | -4/Upper Caves | Spotted B-86 Titan 17488 | -4/Upper Caves | Build established: Mutant 18078 | -4/Upper Caves | Lost 8 parts (1p7u) 18147 | -4/Upper Caves | Attracted the attention of an 0b10 checkpoint 18154 | -4/Upper Caves | Core integrity fell below 50% 18216 | -4/Upper Caves | Discovered new exit (range 10) 18220 | -4/Upper Caves | Identified exit to Upper Caves 18220 | -4/Upper Caves | Entered another Upper Caves area 18278 | -4/Upper Caves | Discovered new exit (range 10) 18282 | -4/Upper Caves | Identified exit to Research 18303 | -4/Upper Caves | Spotted B-86 Titan 18323 | -4/Upper Caves | Identified exit to Warlord 18340 | -4/Upper Caves | Core integrity fell below 20% 18432 | -4/Upper Caves | Entered Warlord 18468 | -4/Warlord | Discovered new exit (range 12) 18495 | -4/Warlord | System corruption cleaned by Quarantine Array 18497 | -4/Warlord | RIF detected upon attempting to enter Warlord's base 18497 | -4/Warlord | Attacked by Warlord forces 18537 | -4/Warlord | Spotted 42-NMQ(B) 18537 | -4/Warlord | Spotted 40-3NN(B) 18584 | -4/Warlord | Entered Proximity Caves 18689 | -3/Proximity Caves | Build established: Derelict-Mutant 19087 | -3/Proximity Caves | Spotted B-86 Titan 19539 | -3/Proximity Caves | Acquired the password to a Derelict Tinkerer's latest research 19545 | -3/Proximity Caves | Found Prototype Special Weapon 19547 | -3/Proximity Caves | Identified Molecular Deconstructor 19627 | -3/Proximity Caves | Attracted the attention of an 0b10 checkpoint 19640 | -3/Proximity Caves | Destroyed by H-66 Slayer with Gauss Rifle Last Messages --------------- Concrete disintegrates. Concrete destabilizing. Concrete disintegrates. System corrupted: Matter fused (-10). Concrete destabilizing. Concrete disintegrates. Concrete destabilizing. Concrete disintegrates. Slug penetrates Wall. Molecular Deconstructor destroyed. Penetrated by Slug. Myomer Leg destroyed. Impulse Thruster destroyed. Y-72 Warden: "INTERCEPTING UNREGISTERED DERELICT." Dropped Med. Storage Unit. Slug penetrates S-43 Plague. S-43 Plague destroyed. Core Shielding destroyed. Penetrated by Slug. [Achievement: This Is Interesting...] Map ----- +----------------------------------------------------+ | ?????????????????????????????????#"" #?????????? | | ?????????????????????????????????#" ###?????????? | | ????????????###??????????????????#" ######????? | | ???????????## #????###############!% ### ###### | | ???????????# ##???# ## | | ???????????# ###?# | | ????????????# ### ###### ## ##### | | ????????????## ##???##### ######???? | | ?????????????# #???????## ### #???####?? | | ????????????## ########## ##?# #??# #?? | | ????????????# ## #??# #?# #??? | | ????????????# ##### #### ## #???? | | ????????????# ##### ## #????? | | ????? ?????# #????? | | ?? ??# ????## #????? | | ?? # ???# ######## #????? | | ? ??## ## #??????### #????? | | ? = ??## #? ##????????## #????? | | % ??# h####??????????## ##??### | | [ ## #####??#??????####???# | | ![ ### ?????????????# | | ????# ## ??????????????# | | ????##### ### #?# ?????????????## | | ????????# ????# ##??# ## #??????????## | | ???????# ?????# ##?## ## #????????#### | | ???????# ?????## ### @ #?????#### | | ??????# ???#### #??#### | | ??????#????## #### #?## | | ???????????# ##???## ## | | ???????????## #??????# ## ## | | ????????????### #?????## ### ### ### | | ??????????????## ##???## ## ##?# #?? | | ???????????????## #???# ##??# #? | | ????????????????# ##???# ##??# #? | | ???????????????## ##????## #??# ##? | | ???????????????# #??????## #??#####?? | | ???????????????#### ##???????# ##????????? | | ??????????????????###????????# ##?????????? | | ?????????????????????????????# #####??????????? | | ?????????????????????????????## ##??????????????? | | ??????????????????????????????###????????????????? | | ?????????????????????????????????????????????????? | | ?????????????????????????????????????????????????? | | ?????????????????????????????????????????????????? | | ?????????????????????????????????????????????????? | | ?????????????????????????????????????????????????? | | ?????????????????????????????????????????????????? | | ?????????????????????????????????????????????????? | | ?????????????????????????????????????????????????? | | ?????????????????????????????????????????????????? | +----------------------------------------------------+ Best States ------------- Heat Dissipation 43 Energy Generation 21 Energy Capacity 770 Matter Stores 300 Matter Capacity 300 Sight Range 16 Robot Scan Range 10 Terrain Scan Density 210 Cloak Strength 3 Additional Mass Support 9 Armor Coverage 225 Resistance: KI 20 Core Shielding 20 Propulsion Shielding 90 Point Defense Rating 80 Thermal Conversion 60 Evasion (%) 66 Targeting Accuracy 5 Recoil Reduction 2 Offensive Hacking 30 Defensive Hacking 30 Item Schematics ----------------- Datajack | -9/Materials | Scanalyzed Remote Datajack | -7/Factory | Scanalyzed Component Analysis Suite | -7/Factory | Scanalyzed Imp. Trap Extractor | -5/Factory | Scanalyzed System Shield | -5/Factory | Scanalyzed Lgt. Angular Momentum Engine | -5/Factory | Scanalyzed Nuclear Pulse Thruster | -5/Factory | Scanalyzed Hcp. Matter Pod | -5/Factory | Scanalyzed Exp. Propulsion Shielding | -5/Factory | Scanalyzed Imp. System Backup Module | -5/Factory | Scanalyzed Antigrav System | -5/Factory | Scanalyzed Field Propulsion Drive | -5/Factory | Scanalyzed Robot Schematics ------------------ None Fabricated ------------ B-48 Gladiator | x3 | -7/Factory | Preloaded B-48 Gladiator | x3 | -7/Factory | Preloaded A-02 Transporter | x1 | -7/Factory | Preloaded Datajack | x1 | -7/Factory Reaction Control System | x1 | -5/Factory | Preloaded Antigrav System | x2 | -5/Factory Antigrav System | x2 | -5/Factory Component Analysis Suite | x1 | -5/Factory Alien Tech Used ----------------- None Achievements -------------- Everything Is Under Control Factory Defaults Maximum Efficiency My Command Is Your Wish Pwned This Is Interesting... Challenges ------------ None Game ------ Seed TeslaSingularityDatajack Manual? 0 Play Time 11:08:21 Cumulative 47.2 hours Start 2019.11.01 @ 20:41:36 End 2019.11.03 @ 23:37:01 Sessions 7 Manual Loads 0 Difficulty Rogue Special Mode None Game No. 12 Rogue 12 Adventurer 0 Explorer 0 Win Type - Total 0 Types 0/0/0/0/0/0/0 Lore% 25 Gallery% 36 Achievement% 27 Wizard Run 0 Options --------- ASCII 1 Keyboard 0 Movement Numpad Keybinds 0 Fullscreen 1 Font 12/Smallcaps Map View 83x54 Tactical HUD 0 Map Filters NONE Filters NONE Steam 1 RUN: 8e170453-3a5b-469e-8045-bdf2f03032ed